[Event "Champions Chess Tour Finals 2024"]
[Date "2024.12.17"]
[White "Nepomniachtchi, Ian"]
[Black "So, Wesley"]
[WhiteElo "2758"]
[BlackElo "2826"]
[Round "1.1"]
[Result "1-0"]
[TimeControl "600+2"]

1. e4 {[%clk 0:10:01]} e5 {[%clk 0:10:02]} 2. Nf3 {[%clk 0:10:00]} Nc6 {[%clk
0:10:03]} 3. Bc4 {[%clk 0:10:00]} Nf6 {[%clk 0:10:03]} 4. d3 {[%clk 0:09:59]}
Be7 {[%clk 0:10:04]} 5. O-O {[%clk 0:09:36]} O-O {[%clk 0:10:04]} 6. Nbd2 {[%clk
0:09:20]} d5 {[%clk 0:09:54]} 7. exd5 {[%clk 0:09:18]} Nxd5 {[%clk 0:09:54]} 8.
Re1 {[%clk 0:08:57]} f6 {[%clk 0:09:41]} 9. a4 {[%clk 0:08:25]} Kh8 {[%clk
0:09:14]} 10. h3 {[%clk 0:08:21]} Bf5 {[%clk 0:07:57]} 11. Nh4 {[%clk 0:08:19]}
Be6 {[%clk 0:07:48]} 12. Nf1 {[%clk 0:08:05]} Qd7 {[%clk 0:06:47]} 13. Ng3
{[%clk 0:08:01]} Rad8 {[%clk 0:06:43]} 14. Bd2 {[%clk 0:07:40]} a6 {[%clk
0:06:29]} 15. a5 {[%clk 0:07:05]} g6 {[%clk 0:06:07]} 16. Nf3 {[%clk 0:06:58]}
Rfe8 {[%clk 0:05:46]} 17. Ne4 {[%clk 0:06:55]} Bg8 {[%clk 0:05:26]} 18. Qc1
{[%clk 0:06:41]} Ndb4 {[%clk 0:05:01]} 19. Bxg8 {[%clk 0:06:05]} Kxg8 {[%clk
0:05:01]} 20. Be3 {[%clk 0:05:44]} f5 {[%clk 0:04:33]} 21. Nc5 {[%clk 0:05:36]}
Qd5 {[%clk 0:04:18]} 22. Na4 {[%clk 0:05:33]} Bf6 {[%clk 0:03:48]} 23. Nc3
{[%clk 0:05:31]} Qd6 {[%clk 0:03:46]} 24. Ra4 {[%clk 0:05:26]} Nd4 {[%clk
0:03:33]} 25. Bxd4 {[%clk 0:05:09]} exd4 {[%clk 0:03:34]} 26. Ne2 {[%clk
0:04:09]} c5 {[%clk 0:03:05]} 27. Qd2 {[%clk 0:04:08]} Re7 {[%clk 0:02:51]} 28.
Raa1 {[%clk 0:04:09]} Rde8 {[%clk 0:02:52]} 29. Rad1 {[%clk 0:03:23]} Nc6 {[%clk
0:02:32]} 30. Ng3 {[%clk 0:02:44]} Qc7 {[%clk 0:02:16]} 31. Rxe7 {[%clk
0:02:43]} Rxe7 {[%clk 0:02:11]} 32. Ra1 {[%clk 0:02:43]} Kg7 {[%clk 0:02:09]}
33. Ne2 {[%clk 0:02:42]} Re8 {[%clk 0:01:54]} 34. Nf4 {[%clk 0:02:40]} Qd6
{[%clk 0:01:55]} 35. g3 {[%clk 0:02:31]} Bd8 {[%clk 0:01:52]} 36. h4 {[%clk
0:02:31]} h6 {[%clk 0:01:49]} 37. Kg2 {[%clk 0:02:29]} g5 {[%clk 0:01:46]} 38.
hxg5 {[%clk 0:02:28]} hxg5 {[%clk 0:01:47]} 39. Ne2 {[%clk 0:02:20]} g4 {[%clk
0:01:36]} 40. Nh2 {[%clk 0:02:10]} Rh8 {[%clk 0:01:25]} 41. Nf4 {[%clk 0:02:02]}
Ne5 {[%clk 0:01:25]} 42. Qe2 {[%clk 0:01:56]} Bc7 {[%clk 0:01:04]} 43. Rh1
{[%clk 0:01:52]} Qc6+ {[%clk 0:01:01]} 44. Kg1 {[%clk 0:01:51]} Kf7 {[%clk
0:01:00]} 45. Qf1 {[%clk 0:01:27]} Rxh2 {[%clk 0:00:47]} 46. Rxh2 {[%clk
0:01:26]} Nf3+ {[%clk 0:00:48]} 47. Kh1 {[%clk 0:01:25]} Bxf4 {[%clk 0:00:39]}
48. gxf4 {[%clk 0:01:20]} Nxh2+ {[%clk 0:00:40]} 49. Kxh2 {[%clk 0:01:22]} Qf3
{[%clk 0:00:41]} 50. Qg2 {[%clk 0:01:12]} Qxf4+ {[%clk 0:00:41]} 51. Kg1 {[%clk
0:01:14]} Qc1+ {[%clk 0:00:38]} 52. Kh2 {[%clk 0:01:15]} Qh6+ {[%clk 0:00:33]}
53. Kg1 {[%clk 0:01:17]} Qc1+ {[%clk 0:00:32]} 54. Kh2 {[%clk 0:01:18]} Qf4+
{[%clk 0:00:22]} 55. Kg1 {[%clk 0:01:20]} Qc7 {[%clk 0:00:17]} 56. Qh1 {[%clk
0:01:19]} Kg6 {[%clk 0:00:16]} 57. Qh8 {[%clk 0:01:20]} Qf7 {[%clk 0:00:12]} 58.
Qe5 {[%clk 0:01:18]} Qf8 {[%clk 0:00:09]} 59. Qc7 {[%clk 0:01:18]} Qe8 {[%clk
0:00:04]} 60. Qxb7 {[%clk 0:01:09]} Qe1+ {[%clk 0:00:04]} 61. Kg2 {[%clk
0:01:10]} f4 {[%clk 0:00:05]} 62. Qd5 {[%clk 0:00:51]} f3+ {[%clk 0:00:05]} 63.
Kg3 {[%clk 0:00:52]} Qg1+ {[%clk 0:00:06]} 64. Kf4 {[%clk 0:00:54]} Qxf2 {[%clk
0:00:07]} 65. Qf5+ {[%clk 0:00:47]} Kg7 {[%clk 0:00:08]} 66. Qxg4+ {[%clk
0:00:48]} Kf7 {[%clk 0:00:05]} 67. Qxf3 {[%clk 0:00:47]} Qxc2 {[%clk 0:00:06]}
68. Ke5+ {[%clk 0:00:49]} Kg7 {[%clk 0:00:04]} 69. Qf6+ {[%clk 0:00:49]} Kh7
{[%clk 0:00:05]} 70. Qxa6 {[%clk 0:00:49]} Qxb2 {[%clk 0:00:04]} 71. Qc4 {[%clk
0:00:38]} Qc3 {[%clk 0:00:04]} 72. Qf7+ {[%clk 0:00:32]} Kh6 {[%clk 0:00:05]}
1-0

[Variant "Standard"]
[Site "Europe Echecs"]

[Event "Champions Chess Tour Finals 2024"]
[Date "2024.12.17"]
[White "Vachier-Lagrave, Maxime"]
[Black "Lazavik, Denis"]
[WhiteElo "2763"]
[BlackElo "2553"]
[Round "1.1"]
[Result "1/2-1/2"]
[TimeControl "600+2"]

1. d4 {[%clk 0:10:02]} Nf6 {[%clk 0:10:02]} 2. c4 {[%clk 0:10:02]} e6 {[%clk
0:10:02]} 3. Nc3 {[%clk 0:10:03]} Bb4 {[%clk 0:10:03]} 4. f3 {[%clk 0:10:03]} d5
{[%clk 0:10:01]} 5. a3 {[%clk 0:10:04]} Be7 {[%clk 0:10:01]} 6. e4 {[%clk
0:10:03]} dxc4 {[%clk 0:10:00]} 7. Be3 {[%clk 0:09:27]} b5 {[%clk 0:09:52]} 8.
Nxb5 {[%clk 0:09:24]} Ba6 {[%clk 0:09:46]} 9. Nc3 {[%clk 0:09:04]} O-O {[%clk
0:09:30]} 10. Nh3 {[%clk 0:09:00]} c5 {[%clk 0:08:45]} 11. dxc5 {[%clk 0:08:44]}
Qc7 {[%clk 0:08:34]} 12. Qc2 {[%clk 0:08:11]} Bxc5 {[%clk 0:08:05]} 13. Bxc5
{[%clk 0:08:11]} Qxc5 {[%clk 0:08:05]} 14. Qf2 {[%clk 0:08:12]} Qa5 {[%clk
0:06:54]} 15. Be2 {[%clk 0:07:59]} Nc6 {[%clk 0:06:54]} 16. O-O {[%clk 0:07:48]}
Rab8 {[%clk 0:06:55]} 17. Rab1 {[%clk 0:07:48]} Rfd8 {[%clk 0:06:52]} 18. Rfd1
{[%clk 0:07:12]} Rxd1+ {[%clk 0:06:37]} 19. Nxd1 {[%clk 0:06:56]} h6 {[%clk
0:06:16]} 20. Bf1 {[%clk 0:06:20]} Nd7 {[%clk 0:04:57]} 21. Rc1 {[%clk 0:06:04]}
Nb6 {[%clk 0:04:39]} 22. Nf4 {[%clk 0:05:36]} Ne5 {[%clk 0:04:19]} 23. Qe3
{[%clk 0:04:42]} Rd8 {[%clk 0:04:06]} 24. Nc3 {[%clk 0:04:34]} Nd3 {[%clk
0:03:50]} 25. Rd1 {[%clk 0:04:26]} Qg5 {[%clk 0:03:50]} 26. h4 {[%clk 0:03:49]}
Qxh4 {[%clk 0:03:36]} 27. Nxd3 {[%clk 0:03:50]} cxd3 {[%clk 0:03:36]} 28. Bxd3
{[%clk 0:03:50]} Bxd3 {[%clk 0:03:14]} 29. Rxd3 {[%clk 0:03:51]} Rxd3 {[%clk
0:02:37]} 30. Qxd3 {[%clk 0:03:52]} Qe1+ {[%clk 0:02:38]} 31. Kh2 {[%clk
0:03:52]} Qh4+ {[%clk 0:02:32]} 32. Kg1 {[%clk 0:03:53]} Qe1+ {[%clk 0:02:27]}
1/2-1/2

[Variant "Standard"]
[Site "Europe Echecs"]

[Event "Champions Chess Tour Finals 2024"]
[Date "2024.12.17"]
[White "Carlsen, Magnus"]
[Black "Keymer, Vincent"]
[WhiteElo "2838"]
[BlackElo "2649"]
[Round "1.1"]
[Result "1-0"]
[TimeControl "600+2"]

1. Nf3 {[%clk 0:10:00]} d5 {[%clk 0:10:02]} 2. e3 {[%clk 0:09:59]} Nf6 {[%clk
0:10:02]} 3. b3 {[%clk 0:09:57]} c5 {[%clk 0:09:51]} 4. Bb2 {[%clk 0:09:45]} g6
{[%clk 0:09:51]} 5. Bb5+ {[%clk 0:08:55]} Bd7 {[%clk 0:09:51]} 6. Bxf6 {[%clk
0:08:18]} exf6 {[%clk 0:09:51]} 7. Bxd7+ {[%clk 0:08:18]} Qxd7 {[%clk 0:09:52]}
8. c3 {[%clk 0:08:02]} Nc6 {[%clk 0:09:46]} 9. d4 {[%clk 0:08:00]} cxd4 {[%clk
0:09:19]} 10. cxd4 {[%clk 0:07:59]} Bb4+ {[%clk 0:08:50]} 11. Nfd2 {[%clk
0:07:48]} Rc8 {[%clk 0:08:28]} 12. O-O {[%clk 0:07:46]} O-O {[%clk 0:08:08]} 13.
a3 {[%clk 0:07:25]} Bd6 {[%clk 0:08:09]} 14. Nc3 {[%clk 0:06:03]} Ne7 {[%clk
0:08:09]} 15. Ne2 {[%clk 0:06:00]} Rc6 {[%clk 0:08:03]} 16. b4 {[%clk 0:06:00]}
Rfc8 {[%clk 0:07:49]} 17. Rc1 {[%clk 0:05:14]} Rxc1 {[%clk 0:06:59]} 18. Nxc1
{[%clk 0:05:14]} Qc7 {[%clk 0:07:00]} 19. g3 {[%clk 0:05:09]} Qc2 {[%clk
0:06:51]} 20. Ncb3 {[%clk 0:04:53]} Qd3 {[%clk 0:05:41]} 21. Qb1 {[%clk
0:04:14]} Qa6 {[%clk 0:04:56]} 22. Qb2 {[%clk 0:03:44]} b6 {[%clk 0:04:56]} 23.
Rc1 {[%clk 0:03:41]} Rxc1+ {[%clk 0:04:46]} 24. Nxc1 {[%clk 0:03:39]} h5 {[%clk
0:04:32]} 25. Qb3 {[%clk 0:03:28]} Qc8 {[%clk 0:04:07]} 26. Ne2 {[%clk 0:03:21]}
h4 {[%clk 0:03:52]} 27. Nc3 {[%clk 0:03:18]} Qf5 {[%clk 0:03:04]} 28. Qb1 {[%clk
0:03:04]} Qg4 {[%clk 0:02:55]} 29. Kg2 {[%clk 0:02:48]} hxg3 {[%clk 0:02:10]}
30. hxg3 {[%clk 0:02:48]} Kg7 {[%clk 0:02:03]} 31. Qd1 {[%clk 0:02:33]} Qxd1
{[%clk 0:01:46]} 32. Nxd1 {[%clk 0:02:34]} f5 {[%clk 0:01:48]} 33. Nc3 {[%clk
0:02:29]} Kf6 {[%clk 0:01:39]} 34. Nf3 {[%clk 0:02:12]} g5 {[%clk 0:01:31]} 35.
Kf1 {[%clk 0:02:04]} g4 {[%clk 0:01:26]} 36. Ne1 {[%clk 0:02:01]} Ke6 {[%clk
0:01:15]} 37. Nd3 {[%clk 0:01:58]} Ng8 {[%clk 0:01:11]} 38. Ke2 {[%clk 0:00:52]}
Nf6 {[%clk 0:01:11]} 39. Kd2 {[%clk 0:00:53]} Ne4+ {[%clk 0:00:47]} 40. Kc2
{[%clk 0:00:54]} Nf6 {[%clk 0:00:37]} 41. a4 {[%clk 0:00:54]} Ne4 {[%clk
0:00:30]} 42. Kb3 {[%clk 0:00:42]} Nd2+ {[%clk 0:00:31]} 43. Kb2 {[%clk
0:00:43]} Ne4 {[%clk 0:00:27]} 44. Kc2 {[%clk 0:00:43]} a6 {[%clk 0:00:17]} 45.
Ne2 {[%clk 0:00:40]} Kd7 {[%clk 0:00:14]} 46. Nec1 {[%clk 0:00:33]} Kc6 {[%clk
0:00:10]} 47. Nb3 {[%clk 0:00:32]} Kc7 {[%clk 0:00:08]} 48. Nbc1 {[%clk
0:00:24]} Kc6 {[%clk 0:00:09]} 49. Na2 {[%clk 0:00:20]} Kd7 {[%clk 0:00:10]} 50.
Nc3 {[%clk 0:00:19]} Ke6 {[%clk 0:00:10]} 51. a5 {[%clk 0:00:17]} b5 {[%clk
0:00:05]} 52. Nd1 {[%clk 0:00:17]} Kd7 {[%clk 0:00:05]} 53. Nc5+ {[%clk
0:00:17]} Bxc5 {[%clk 0:00:04]} 54. dxc5 {[%clk 0:00:18]} Kc7 {[%clk 0:00:04]}
55. Kd3 {[%clk 0:00:19]} Kc6 {[%clk 0:00:05]} 56. Kd4 {[%clk 0:00:18]} f6 {[%clk
0:00:06]} 57. Nc3 {[%clk 0:00:16]} Nxc3 {[%clk 0:00:05]} 58. Kxc3 {[%clk
0:00:17]} Kc7 {[%clk 0:00:06]} 59. Kd3 {[%clk 0:00:17]} Kd7 {[%clk 0:00:07]} 60.
Ke2 {[%clk 0:00:18]} Kc7 {[%clk 0:00:07]} 61. f3 {[%clk 0:00:19]} Kd7 {[%clk
0:00:06]} 62. fxg4 {[%clk 0:00:20]} fxg4 {[%clk 0:00:07]} 63. Kd3 {[%clk
0:00:21]} f5 {[%clk 0:00:04]} 64. Kd4 {[%clk 0:00:22]} Ke6 {[%clk 0:00:05]} 65.
c6 {[%clk 0:00:18]} 1-0

[Variant "Standard"]
[Site "Europe Echecs"]

[Event "Champions Chess Tour Finals 2024"]
[Date "2024.12.17"]
[White "Firouzja, Alireza"]
[Black "Aronian, Levon"]
[WhiteElo "2756"]
[BlackElo "2818"]
[Round "1.1"]
[Result "1-0"]
[TimeControl "600+2"]

1. e4 {[%clk 0:10:03]} c5 {[%clk 0:10:03]} 2. Nf3 {[%clk 0:10:03]} d6 {[%clk
0:10:04]} 3. d4 {[%clk 0:10:00]} cxd4 {[%clk 0:10:05]} 4. Nxd4 {[%clk 0:10:00]}
Nf6 {[%clk 0:10:06]} 5. Nc3 {[%clk 0:10:01]} a6 {[%clk 0:10:07]} 6. Bd3 {[%clk
0:09:16]} e5 {[%clk 0:10:06]} 7. Nde2 {[%clk 0:09:16]} Be7 {[%clk 0:09:59]} 8.
O-O {[%clk 0:09:15]} Be6 {[%clk 0:09:58]} 9. f4 {[%clk 0:09:01]} exf4 {[%clk
0:09:58]} 10. Nxf4 {[%clk 0:09:02]} Nc6 {[%clk 0:09:57]} 11. Be3 {[%clk
0:08:38]} Ne5 {[%clk 0:09:45]} 12. a4 {[%clk 0:08:19]} O-O {[%clk 0:09:45]} 13.
Qe1 {[%clk 0:08:13]} Rc8 {[%clk 0:09:14]} 14. a5 {[%clk 0:08:10]} Nfd7 {[%clk
0:08:38]} 15. Ncd5 {[%clk 0:07:19]} Bg5 {[%clk 0:08:37]} 16. Bd4 {[%clk
0:07:08]} Nc5 {[%clk 0:07:56]} 17. Qg3 {[%clk 0:06:54]} Bh4 {[%clk 0:07:39]} 18.
Qe3 {[%clk 0:06:55]} Bg5 {[%clk 0:07:33]} 19. Qe2 {[%clk 0:05:57]} Bh6 {[%clk
0:05:34]} 20. b4 {[%clk 0:05:49]} Ncd7 {[%clk 0:04:47]} 21. h3 {[%clk 0:05:42]}
Re8 {[%clk 0:04:13]} 22. Rf2 {[%clk 0:05:18]} Nc6 {[%clk 0:03:49]} 23. Bb2
{[%clk 0:05:09]} Bxf4 {[%clk 0:03:14]} 24. Nxf4 {[%clk 0:04:59]} Nxb4 {[%clk
0:03:03]} 25. Nxe6 {[%clk 0:04:02]} Rxe6 {[%clk 0:03:02]} 26. Bc4 {[%clk
0:03:49]} d5 {[%clk 0:02:09]} 27. Qf3 {[%clk 0:03:43]} Nf6 {[%clk 0:01:25]} 28.
exd5 {[%clk 0:03:35]} Rd6 {[%clk 0:01:09]} 29. Bb3 {[%clk 0:02:47]} Nbxd5 {[%clk
0:01:07]} 30. Rd1 {[%clk 0:02:35]} Ne7 {[%clk 0:00:35]} 31. Rxd6 {[%clk
0:02:30]} Qxd6 {[%clk 0:00:36]} 32. Qxb7 {[%clk 0:02:12]} Rb8 {[%clk 0:00:19]}
33. Qa7 {[%clk 0:01:07]} Re8 {[%clk 0:00:10]} 34. Rf1 {[%clk 0:00:41]} Rf8
{[%clk 0:00:06]} 35. Qb6 {[%clk 0:00:30]} Nc6 {[%clk 0:00:06]} 36. Qe3 {[%clk
0:00:14]} Nxa5 {[%clk 0:00:05]} 37. Ba3 {[%clk 0:00:15]} Re8 {[%clk 0:00:03]}
38. Qxe8+ {[%clk 0:00:10]} Nxe8 {[%clk 0:00:04]} 39. Bxf7+ {[%clk 0:00:10]} Kh8
{[%clk 0:00:06]} 40. Bxd6 {[%clk 0:00:11]} Nxd6 {[%clk 0:00:07]} 41. Bd5 {[%clk
0:00:09]} 1-0

[Variant "Standard"]
[Site "Europe Echecs"]

[Event "Champions Chess Tour Finals 2024"]
[Date "2024.12.17"]
[White "So, Wesley"]
[Black "Nepomniachtchi, Ian"]
[WhiteElo "2826"]
[BlackElo "2758"]
[Round "1.2"]
[Result "1/2-1/2"]
[TimeControl "600+2"]

1. c4 {[%clk 0:10:02]} e5 {[%clk 0:09:55]} 2. g3 {[%clk 0:10:01]} c6 {[%clk
0:09:48]} 3. d4 {[%clk 0:09:55]} Bb4+ {[%clk 0:09:48]} 4. Bd2 {[%clk 0:09:54]}
Bxd2+ {[%clk 0:09:48]} 5. Qxd2 {[%clk 0:09:55]} d6 {[%clk 0:09:49]} 6. Nc3
{[%clk 0:09:52]} Nf6 {[%clk 0:09:49]} 7. e4 {[%clk 0:08:31]} O-O {[%clk
0:09:42]} 8. Bg2 {[%clk 0:07:56]} b5 {[%clk 0:09:17]} 9. cxb5 {[%clk 0:07:33]}
cxb5 {[%clk 0:09:17]} 10. Nge2 {[%clk 0:06:52]} b4 {[%clk 0:08:43]} 11. Nd5
{[%clk 0:06:52]} Nxd5 {[%clk 0:08:38]} 12. exd5 {[%clk 0:06:52]} exd4 {[%clk
0:08:34]} 13. O-O {[%clk 0:06:07]} Ba6 {[%clk 0:08:35]} 14. Rfe1 {[%clk
0:05:55]} Bxe2 {[%clk 0:08:19]} 15. Rxe2 {[%clk 0:05:56]} a5 {[%clk 0:08:02]}
16. Qxd4 {[%clk 0:05:51]} Nd7 {[%clk 0:08:04]} 17. Rae1 {[%clk 0:05:30]} Rc8
{[%clk 0:07:49]} 18. h4 {[%clk 0:04:59]} h6 {[%clk 0:07:38]} 19. Bh3 {[%clk
0:04:46]} Ne5 {[%clk 0:07:35]} 20. Kg2 {[%clk 0:04:44]} Rc4 {[%clk 0:07:35]} 21.
Qd2 {[%clk 0:04:42]} Rc5 {[%clk 0:06:53]} 22. b3 {[%clk 0:04:34]} Qa8 {[%clk
0:06:46]} 23. Rd1 {[%clk 0:04:32]} Rc3 {[%clk 0:06:14]} 24. Re3 {[%clk 0:04:21]}
Rxe3 {[%clk 0:06:04]} 25. Qxe3 {[%clk 0:04:23]} Re8 {[%clk 0:06:04]} 26. Qb6
{[%clk 0:04:10]} Qd8 {[%clk 0:06:05]} 27. Qxd8 {[%clk 0:03:58]} Rxd8 {[%clk
0:06:06]} 28. f4 {[%clk 0:03:57]} Nd7 {[%clk 0:06:06]} 29. Bxd7 {[%clk 0:03:57]}
Rxd7 {[%clk 0:06:07]} 30. Rc1 {[%clk 0:03:58]} Ra7 {[%clk 0:05:22]} 31. Rc8+
{[%clk 0:03:40]} Kh7 {[%clk 0:05:23]} 32. Kf3 {[%clk 0:03:41]} f5 {[%clk
0:04:47]} 33. h5 {[%clk 0:03:20]} a4 {[%clk 0:04:49]} 34. Rc4 {[%clk 0:03:05]}
axb3 {[%clk 0:04:49]} 35. axb3 {[%clk 0:03:07]} Ra5 {[%clk 0:04:51]} 36. Rd4
{[%clk 0:03:03]} g6 {[%clk 0:03:59]} 37. Rxb4 {[%clk 0:03:01]} gxh5 {[%clk
0:04:00]} 38. Rd4 {[%clk 0:02:25]} Kg6 {[%clk 0:03:58]} 39. Rd3 {[%clk 0:02:20]}
Rb5 {[%clk 0:03:53]} 40. Ke3 {[%clk 0:01:38]} h4 {[%clk 0:03:52]} 41. gxh4
{[%clk 0:01:38]} Kh5 {[%clk 0:03:53]} 42. Kd4 {[%clk 0:01:40]} Kxh4 {[%clk
0:03:52]} 43. Kc4 {[%clk 0:01:37]} Rc5+ {[%clk 0:03:53]} 44. Kd4 {[%clk
0:01:38]} Rb5 {[%clk 0:03:55]} 45. Kc4 {[%clk 0:00:55]} Rc5+ {[%clk 0:03:56]}
46. Kd4 {[%clk 0:00:56]} 1/2-1/2

[Variant "Standard"]
[Site "Europe Echecs"]

[Event "Champions Chess Tour Finals 2024"]
[Date "2024.12.17"]
[White "Lazavik, Denis"]
[Black "Vachier-Lagrave, Maxime"]
[WhiteElo "2553"]
[BlackElo "2763"]
[Round "1.2"]
[Result "1-0"]
[TimeControl "600+2"]

1. d4 {[%clk 0:10:03]} Nf6 {[%clk 0:10:03]} 2. Nf3 {[%clk 0:10:01]} g6 {[%clk
0:10:02]} 3. c4 {[%clk 0:10:02]} Bg7 {[%clk 0:10:02]} 4. e3 {[%clk 0:10:02]} O-O
5. Be2 {[%clk 0:10:01]} c5 {[%clk 0:09:50]} 6. d5 {[%clk 0:10:01]} d6 {[%clk
0:09:50]} 7. Nc3 {[%clk 0:10:01]} e6 {[%clk 0:09:50]} 8. Nd2 {[%clk 0:09:59]} b5
{[%clk 0:09:48]} 9. dxe6 {[%clk 0:09:51]} Bxe6 {[%clk 0:09:46]} 10. cxb5 {[%clk
0:09:51]} d5 {[%clk 0:09:40]} 11. O-O {[%clk 0:09:22]} Nbd7 {[%clk 0:09:23]} 12.
Nf3 {[%clk 0:07:47]} h6 {[%clk 0:09:24]} 13. a4 {[%clk 0:07:45]} Qc7 {[%clk
0:09:02]} 14. a5 {[%clk 0:07:07]} Rad8 {[%clk 0:09:01]} 15. Ra4 {[%clk 0:07:00]}
Rfe8 {[%clk 0:08:49]} 16. Bd2 {[%clk 0:06:28]} Ng4 {[%clk 0:07:54]} 17. Nxd5
{[%clk 0:04:30]} Bxd5 {[%clk 0:07:45]} 18. Rxg4 {[%clk 0:04:30]} Nf6 {[%clk
0:05:28]} 19. Ra4 {[%clk 0:04:22]} Ne4 {[%clk 0:05:28]} 20. Qc2 {[%clk 0:03:56]}
c4 {[%clk 0:05:08]} 21. Bxc4 {[%clk 0:03:22]} Nd6 {[%clk 0:05:08]} 22. Bb3
{[%clk 0:02:28]} Qxc2 {[%clk 0:05:07]} 23. Bxc2 {[%clk 0:02:29]} Nxb5 {[%clk
0:05:08]} 24. Bc1 {[%clk 0:01:59]} Rb8 {[%clk 0:04:56]} 25. Rd1 {[%clk 0:01:55]}
Be6 {[%clk 0:04:22]} 26. Ra1 {[%clk 0:01:29]} Rec8 {[%clk 0:04:15]} 27. Bd3
{[%clk 0:01:29]} Bb3 {[%clk 0:03:59]} 28. Re1 {[%clk 0:01:29]} Rd8 {[%clk
0:03:58]} 29. Bxb5 {[%clk 0:01:09]} Rxb5 {[%clk 0:03:59]} 30. Nd4 {[%clk
0:01:10]} Rb7 {[%clk 0:03:53]} 31. a6 {[%clk 0:01:06]} Rb6 {[%clk 0:03:54]} 32.
Bd2 {[%clk 0:01:07]} Rd7 {[%clk 0:03:28]} 33. Bc3 {[%clk 0:00:51]} Bc4 {[%clk
0:03:27]} 34. Ra4 {[%clk 0:00:50]} Bd3 {[%clk 0:03:19]} 35. Rea1 {[%clk
0:00:36]} Rdd6 {[%clk 0:03:19]} 36. h3 {[%clk 0:00:22]} Bf8 {[%clk 0:02:50]} 37.
Nf3 {[%clk 0:00:11]} Rxa6 {[%clk 0:02:27]} 38. Rxa6 {[%clk 0:00:12]} Rxa6 {[%clk
0:02:27]} 39. Rxa6 {[%clk 0:00:14]} Bxa6 {[%clk 0:02:28]} 40. Bd4 {[%clk
0:00:15]} Bb7 {[%clk 0:02:28]} 41. Bxa7 {[%clk 0:00:15]} f6 {[%clk 0:02:30]} 42.
Bd4 {[%clk 0:00:16]} Kf7 {[%clk 0:02:31]} 43. Nd2 {[%clk 0:00:16]} Ke6 {[%clk
0:02:25]} 44. f3 {[%clk 0:00:14]} f5 {[%clk 0:02:23]} 45. Kf2 {[%clk 0:00:14]}
Bd5 {[%clk 0:02:21]} 46. Nb1 {[%clk 0:00:13]} Bb4 {[%clk 0:02:19]} 47. Nc3
{[%clk 0:00:13]} Bxc3 {[%clk 0:02:09]} 48. Bxc3 {[%clk 0:00:13]} g5 {[%clk
0:02:01]} 49. g4 {[%clk 0:00:11]} fxg4 {[%clk 0:01:56]} 50. hxg4 {[%clk
0:00:13]} Kf7 {[%clk 0:01:57]} 51. e4 {[%clk 0:00:11]} Bb3 {[%clk 0:01:58]} 52.
Ke3 {[%clk 0:00:10]} Kg6 {[%clk 0:01:58]} 53. f4 {[%clk 0:00:06]} gxf4+ {[%clk
0:01:57]} 54. Kxf4 {[%clk 0:00:07]} Kf7 {[%clk 0:01:51]} 55. Bb4 {[%clk
0:00:08]} Be6 {[%clk 0:01:49]} 56. Bc5 {[%clk 0:00:09]} Bc8 {[%clk 0:01:47]} 57.
b4 {[%clk 0:00:10]} Bd7 {[%clk 0:01:48]} 58. Be3 {[%clk 0:00:07]} Kf6 {[%clk
0:01:48]} 59. Bd4+ {[%clk 0:00:08]} Kf7 {[%clk 0:01:48]} 60. Bc3 {[%clk
0:00:06]} Kg6 {[%clk 0:01:46]} 61. Bd2 {[%clk 0:00:07]} Kf7 {[%clk 0:01:47]} 62.
g5 {[%clk 0:00:07]} hxg5+ {[%clk 0:01:47]} 63. Kxg5 {[%clk 0:00:08]} Ke6 {[%clk
0:01:49]} 64. Kf4 {[%clk 0:00:09]} Kd6 {[%clk 0:01:19]} 65. Ke3 {[%clk 0:00:10]}
Bb5 {[%clk 0:01:13]} 66. Kd4 {[%clk 0:00:11]} Bf1 {[%clk 0:01:14]} 67. Bf4+
{[%clk 0:00:12]} Kc6 {[%clk 0:01:15]} 68. Ke5 {[%clk 0:00:13]} Bd3 {[%clk
0:01:13]} 69. Bd2 {[%clk 0:00:11]} Bc2 {[%clk 0:01:13]} 70. Kf4 {[%clk 0:00:12]}
Bb1 {[%clk 0:01:09]} 71. Ke3 {[%clk 0:00:09]} Bc2 {[%clk 0:01:07]} 72. Kd4
{[%clk 0:00:10]} Bb1 {[%clk 0:01:08]} 73. Bc3 {[%clk 0:00:10]} Bc2 {[%clk
0:01:09]} 74. e5 {[%clk 0:00:11]} Bf5 {[%clk 0:01:05]} 75. Ke3 {[%clk 0:00:13]}
Kd5 {[%clk 0:01:03]} 76. Kf4 {[%clk 0:00:14]} Bd7 {[%clk 0:01:04]} 77. Bd2
{[%clk 0:00:07]} Kd4 {[%clk 0:00:57]} 78. Be1 {[%clk 0:00:06]} Kd5 {[%clk
0:00:57]} 79. Bf2 {[%clk 0:00:05]} Kc4 {[%clk 0:00:51]} 80. Bc5 {[%clk 0:00:05]}
Kd5 {[%clk 0:00:52]} 81. Bd6 {[%clk 0:00:06]} Kc6 {[%clk 0:00:31]} 82. Kg5
{[%clk 0:00:07]} Be6 {[%clk 0:00:26]} 83. Kf6 {[%clk 0:00:09]} Bc4 {[%clk
0:00:27]} 84. Ke7 {[%clk 0:00:07]} Kd5 {[%clk 0:00:28]} 85. e6 {[%clk 0:00:06]}
Kc6 {[%clk 0:00:29]} 86. Bc5 {[%clk 0:00:06]} Bb3 {[%clk 0:00:28]} 87. Kf6
{[%clk 0:00:07]} Bc4 {[%clk 0:00:28]} 88. e7 {[%clk 0:00:07]} Kd7 {[%clk
0:00:30]} 89. Ke5 {[%clk 0:00:06]} Bf1 {[%clk 0:00:19]} 90. Kf6 {[%clk 0:00:06]}
Bc4 {[%clk 0:00:20]} 91. Bf2 {[%clk 0:00:07]} Ke8 {[%clk 0:00:19]} 92. Bh4
{[%clk 0:00:08]} Kd7 {[%clk 0:00:19]} 93. Ke5 {[%clk 0:00:09]} Bf7 {[%clk
0:00:10]} 94. b5 {[%clk 0:00:08]} Be8 {[%clk 0:00:08]} 95. Kd5 {[%clk 0:00:09]}
Kc7 {[%clk 0:00:09]} 96. Kc5 {[%clk 0:00:10]} Kb7 {[%clk 0:00:10]} 97. b6 {[%clk
0:00:09]} Kc8 {[%clk 0:00:11]} 98. Kd6 {[%clk 0:00:10]} Ba4 {[%clk 0:00:10]} 99.
Ke6 {[%clk 0:00:11]} Kb7 {[%clk 0:00:10]} 100. Bf2 {[%clk 0:00:12]} 1-0

[Variant "Standard"]
[Site "Europe Echecs"]